fUSD/lending_fUSD_20250811
["ID","MTS","AMOUNT","RATE_DAILY","PERIOD"]
[378510967,1754890244705,-600.0,0.00017967,2]
[378510968,1754890244715,-600.0,0.00017967,2]
[378510969,1754890244724,-600.0,0.00017967,2]
[378510970,1754890244734,-571.27,0.00017967,2]
[378510971,1754890244744,-500.0,0.00017973,2]
[378510972,1754890244754,-504.97772946,0.00017973,2]
[378510973,1754890244763,-500.0,0.00017973,2]
[378510974,1754890244772,-500.0,0.00017973,2]
[378510975,1754890244781,-500.0,0.00017973,2]
[378510976,1754890244790,-501.17093585,0.00017973,2]
[378510977,1754890244800,-510.67229616,0.00017973,2]
[378510978,1754890244809,-500.0,0.00017973,2]
[378510979,1754890244819,-199.41,0.00017975,2]
[378510980,1754890244828,-163.095418,0.00017988,2]
[378510981,1754890244839,-151.0,0.00017988,2]
[378510982,1754890244848,-163.095418,0.00017988,2]
[378510983,1754890244858,-953.800763,0.00017988,2]
[378510984,1754890244868,-953.800763,0.00017988,2]
[378510985,1754890244877,-10000.0,0.00017988,2]
[378510986,1754890244887,-10000.0,0.00017988,2]
[378510987,1754890244897,-10000.0,0.00017988,2]
[378510988,1754890244907,-216.042072,0.00017988,2]
[378510989,1754890244916,-216.042072,0.00017988,2]
[378510990,1754890244926,-1804.603059,0.00017988,2]
[378510991,1754890244936,-1804.603059,0.00017988,2]
[378510992,1754890244946,-1200.323483,0.00017988,2]
[378510993,1754890244955,-151.0,0.00017988,2]
[378510994,1754890244965,-1200.323483,0.00017988,2]
[378510995,1754890244974,-151.0,0.00017988,2]
[378510996,1754890244984,-250.173049,0.00017988,2]
[378510997,1754890244996,-250.173049,0.00017988,2]
[378510998,1754890245005,-1574.069305,0.00017988,2]
[378510999,1754890245015,-1574.069305,0.00017988,2]
[378511000,1754890245025,-151.0,0.00017989,2]
[378511001,1754890245035,-151.0,0.00017989,2]
[378511002,1754890245044,-261.044515,0.00017989,2]
[378511003,1754890245053,-261.044515,0.00017989,2]
[378511004,1754890245063,-151.0,0.00017989,2]
[378511005,1754890245072,-763.169563,0.00017989,2]
[378511006,1754890245081,-151.0,0.00017989,2]
[378511007,1754890245091,-763.169563,0.00017989,2]
[378511008,1754890245100,-574.407,0.00017989,2]
[378511009,1754890245109,-574.407,0.00017989,2]
[378511010,1754890245119,-237.164555,0.00017989,2]
[378511011,1754890245128,-237.164555,0.00017989,2]
[378511012,1754890245138,-151.0,0.00017989,2]
[378511013,1754890245147,-197.270912,0.00017989,2]
[378511014,1754890245156,-197.270912,0.00017989,2]
[378511015,1754890245165,-151.0,0.0001799,2]
[378511016,1754890245175,-151.0,0.0001799,2]
[378511017,1754890245184,-151.0,0.0001799,2]
[378511018,1754890245194,-2643.368854,0.0001799,2]
[378511019,1754890245203,-2643.368854,0.0001799,2]
[378511020,1754890245213,-1074.407428,0.0001799,2]
[378511021,1754890245222,-1074.407428,0.0001799,2]
[378511022,1754890245233,-151.0,0.0001799,2]
[378511023,1754890245244,-340.943643,0.0001799,2]
[378511024,1754890245255,-340.943643,0.0001799,2]
[378511025,1754890245264,-4039.536178,0.0001799,2]
[378511026,1754890245274,-4039.536178,0.0001799,2]
[378511027,1754890245283,-151.0,0.00017992,2]
[378511028,1754890245293,-445.966927,0.00017992,2]
[378511029,1754890245302,-445.966927,0.00017992,2]
[378511030,1754890245312,-151.0,0.00017992,2]
[378511031,1754890245321,-296.068264,0.00017992,2]
[378511032,1754890245331,-296.068264,0.00017992,2]
[378511033,1754890245340,-151.0,0.00017992,2]
[378511034,1754890245349,-194.003862,0.00017992,2]
[378511035,1754890245358,-194.003862,0.00017992,2]
[378511036,1754890245368,-198.315148,0.00017992,2]
[378511037,1754890245377,-198.315148,0.00017992,2]
[378511038,1754890245387,-1731.537162,0.00017992,2]
[378511039,1754890245396,-1731.537162,0.00017992,2]
[378511040,1754890245406,-151.0,0.00017992,2]
[378511041,1754890245415,-151.0,0.00017992,2]
[378511042,1754890245424,-151.0,0.00017992,2]
[378511043,1754890245434,-195.474766,0.00017992,2]
[378511044,1754890245443,-195.474766,0.00017992,2]
[378511045,1754890245452,-688.960651,0.00017992,2]
[378511046,1754890245462,-688.960651,0.00017992,2]
[378511047,1754890245471,-388.703329,0.00017992,2]
[378511048,1754890245481,-388.703329,0.00017992,2]
[378511049,1754890245491,-151.0,0.00017992,2]
[378511050,1754890245500,-151.0,0.00017992,2]
[378511051,1754890245510,-3360.120026,0.00017992,2]
[378511052,1754890245519,-3360.120026,0.00017992,2]
[378511053,1754890245528,-1007.50392,0.00017992,2]
[378511054,1754890245539,-1007.50392,0.00017992,2]
[378511055,1754890245548,-151.0,0.00017992,2]
[378511056,1754890245557,-151.0,0.00017992,2]
[378511057,1754890245567,-60253.82655806,0.00018,2]
[378511058,1754890245576,-18384.12108632,0.00018,2]
[378511059,1754890245586,-1164.90659479,0.00018,2]
[378511060,1754890245596,-801.56,0.00018015,2]
[378511061,1754890245605,-151.0,0.00018049,2]
[378511062,1754890245615,-516.224086,0.00018067,2]
[378511063,1754890245624,-516.224086,0.00018067,2]
[378511064,1754890245634,-151.0,0.00018067,2]
[378511065,1754890245644,-151.0,0.00018067,2]
[378511066,1754890245654,-158.052631,0.00018067,2]
[378511067,1754890245665,-151.0,0.00018067,2]
[378511068,1754890245674,-151.0,0.00018067,2]
[378511069,1754890245684,-151.0,0.00018067,2]
[378511070,1754890245693,-151.0,0.00018067,2]
[378511071,1754890245704,-151.0,0.00018067,2]
[378511072,1754890245714,-151.0,0.00018067,2]
[378511073,1754890245723,-151.0,0.00018067,2]
[378511074,1754890245733,-151.0,0.00018067,2]
[378511076,1754890245744,-401.379728,0.00018067,2]
[378511077,1754890245754,-401.379728,0.00018067,2]
[378511078,1754890245763,-151.0,0.00018067,2]
[378511079,1754890245772,-151.0,0.00018067,2]
[378511080,1754890245782,-151.0,0.00018067,2]
[378511081,1754890245791,-196.625057,0.00018067,2]
[378511083,1754890245801,-196.625057,0.00018067,2]
[378511085,1754890245810,-631.63242159,0.00018068,2]
[378511086,1754890245820,-500.71931818,0.00018068,2]
[378511087,1754890245829,-1008.56399974,0.00018068,2]
[378511088,1754890245838,-1500.0,0.00018068,2]
[378511089,1754890245848,-1500.0,0.00018068,2]
[378511090,1754890245857,-641.11991256,0.00018068,2]
[378511091,1754890245867,-1500.0,0.00018068,2]
[378511092,1754890245877,-1320.65612154,0.00018068,2]
[378511093,1754890245887,-1001.21106485,0.00018068,2]
[378511094,1754890245897,-713.15918531,0.00018068,2]
[378511095,1754890245907,-762.50266895,0.00018068,2]
[378511096,1754890245918,-168.0,0.00018076,2]
[378511097,1754890245928,-500.0,0.00018082,2]
[378511098,1754890246211,-199.919864,0.00018082,2]
[378511099,1754890246278,-199.919864,0.00018082,2]
[378511100,1754890246288,-1008.99,0.00018082,2]
[378511101,1754890246298,-151.0,0.00018093,2]
[378511102,1754890246308,-249.308564,0.00018094,2]
[378511103,1754890246318,-151.0,0.00018094,2]
[378511104,1754890246328,-151.0,0.00018094,2]
[378511105,1754890246338,-151.0,0.00018094,2]
[378511106,1754890246348,-151.0,0.00018094,2]
[378511107,1754890246358,-151.0,0.00018094,2]
[378511108,1754890246367,-151.0,0.00018094,2]
[378511109,1754890246377,-151.0,0.00018094,2]
[378511110,1754890246387,-348.307943,0.00018094,2]
[378511111,1754890246396,-348.307943,0.00018094,2]
[378511112,1754890246406,-151.0,0.00018094,2]
[378511113,1754890246415,-151.0,0.00018094,2]
[378511114,1754890246425,-177.351646,0.00018094,2]
[378511115,1754890246435,-177.351646,0.00018094,2]
[378511116,1754890246444,-317.599438,0.00018094,2]
[378511117,1754890246454,-317.599438,0.00018094,2]
[378511118,1754890246463,-157.575299,0.00018094,2]
[378511119,1754890246473,-157.575299,0.00018094,2]
[378511121,1754890246482,-485.864058,0.00018094,2]
[378511122,1754890246493,-485.864058,0.00018094,2]
[378511123,1754890246502,-151.0,0.00018094,2]
[378511124,1754890246512,-151.0,0.00018094,2]
[378511125,1754890246522,-151.0,0.00018094,2]
[378511126,1754890246531,-151.0,0.00018094,2]
[378511127,1754890246542,-151.0,0.00018095,2]
[378511128,1754890246551,-500.0,0.00018108,2]
[378511129,1754890246561,-1258.0,0.00018108,2]
[378511130,1754890246570,-737.96,0.00018153,2]
[378511131,1754890246580,-2500.0,0.00018164,2]
[378511132,1754890246589,-2039.6175411,0.00018164,2]
[378511133,1754890246599,-439.67513965,0.00018164,2]
[378511134,1754890246611,-2500.0,0.00018164,2]
[378511135,1754890246621,-167.89,0.00018175,2]
[378511136,1754890246630,-209.57,0.00018175,2]
[378511137,1754890246640,-239.84119403,0.00018208,2]
[378511138,1754890246649,-160.0,0.00018208,2]
[378511139,1754890246660,-359.76179104,0.00018208,2]
[378511140,1754890246671,-866.0,0.00018224,2]
[378511141,1754890246680,-168.0,0.00018232,2]
[378511142,1754890246690,-208.0,0.00018234,2]
[378511143,1754890246699,-168.0,0.00018237,2]
[378511144,1754890246709,-208.0,0.00018242,2]
[378511145,1754890246720,-247.0,0.0001825,2]
[378511147,1754890246730,-222.873055,0.00018263,2]
[378511148,1754890246741,-222.873055,0.00018263,2]
[378511149,1754890246751,-151.0,0.00018263,2]
[378511150,1754890246760,-151.0,0.00018263,2]
[378511151,1754890246770,-293.965612,0.00018263,2]
[378511152,1754890246785,-293.965612,0.00018263,2]
[378511153,1754890246795,-151.0,0.00018263,2]
[378511154,1754890246804,-151.0,0.00018263,2]
[378511155,1754890246814,-172.689415,0.00018263,2]
[378511156,1754890246824,-151.0,0.00018263,2]
[378511157,1754890246833,-574.407,0.00018263,2]
[378511158,1754890246843,-574.407,0.00018263,2]
[378511159,1754890246855,-151.0,0.00018263,2]
[378511160,1754890246869,-151.634683,0.00018263,2]
[378511161,1754890246879,-163.095418,0.00018263,2]
[378511162,1754890246888,-151.0,0.00018263,2]
[378511163,1754890246898,-163.095418,0.00018263,2]
[378511164,1754890246908,-953.800763,0.00018263,2]
[378511165,1754890246918,-953.800763,0.00018263,2]
[378511166,1754890246928,-10000.0,0.00018263,2]
[378511167,1754890246937,-10000.0,0.00018263,2]
[378511168,1754890246947,-10000.0,0.00018263,2]
[378511169,1754890246956,-216.042072,0.00018263,2]
[378511170,1754890246966,-216.042072,0.00018263,2]
[378511171,1754890246975,-1804.603059,0.00018263,2]
[378511173,1754890246984,-1804.603059,0.00018263,2]
[378511174,1754890246994,-727.572305,0.00018263,2]
[378511175,1754890247003,-727.572305,0.00018263,2]
[378511176,1754890247013,-204.09109,0.00018263,2]
[378511177,1754890247023,-204.09109,0.00018263,2]
[378511178,1754890247039,-1200.323483,0.00018263,2]
[378511180,1754890247049,-151.0,0.00018263,2]
[378511181,1754890247059,-1200.323483,0.00018263,2]
[378511182,1754890247068,-151.0,0.00018263,2]
[378511183,1754890247078,-250.173049,0.00018263,2]
[378511184,1754890247094,-250.173049,0.00018263,2]
[378511185,1754890247104,-1574.069305,0.00018263,2]
[378511186,1754890247113,-1574.069305,0.00018263,2]
[378511187,1754890247123,-193.68,0.00018264,2]
[378511188,1754890247132,-193.68,0.00018264,2]
[378511189,1754890247142,-279.392465,0.00018264,2]
[378511190,1754890247151,-279.392465,0.00018264,2]
[378511191,1754890247160,-151.0,0.00018264,2]
[378511192,1754890247170,-151.0,0.00018264,2]
[378511193,1754890247179,-151.0,0.00018264,2]
[378511194,1754890247189,-151.0,0.00018264,2]
[378511195,1754890247199,-151.0,0.00018264,2]
[378511196,1754890247210,-261.044515,0.00018264,2]
[378511197,1754890247222,-261.044515,0.00018264,2]
[378511198,1754890247233,-763.169563,0.00018264,2]
[378511199,1754890247246,-763.169563,0.00018264,2]
[378511201,1754890247256,-237.164555,0.00018264,2]
[378511202,1754890247266,-237.164555,0.00018264,2]
[378511203,1754890247275,-152.136074,0.00018264,2]
[378511204,1754890247284,-197.270912,0.00018264,2]
[378511205,1754890247294,-197.270912,0.00018264,2]
[378511206,1754890247303,-151.0,0.00018265,2]
[378511207,1754890247312,-1503.65650653,0.00018298,2]
[378511208,1754890247320,-151.0,0.00018298,2]
[378511209,1754890247329,-151.0,0.00018298,2]
[378511210,1754890247337,-168.0,0.00018303,2]
[378511211,1754890247346,-500.0,0.00018356,2]
[378511212,1754890247353,-151.0,0.00018356,2]
[378511213,1754890247360,-151.0,0.00018356,2]
[378511214,1754890247368,-1008.99,0.00018356,2]
[378511215,1754890247377,-2643.368854,0.00018356,2]
[378511216,1754890247387,-2643.368854,0.00018356,2]
[378511217,1754890247396,-1074.407428,0.00018356,2]
[378511218,1754890247405,-1074.407428,0.00018356,2]
[378511219,1754890247414,-151.0,0.00018356,2]
[378511220,1754890247424,-340.943643,0.00018356,2]
[378511221,1754890247433,-340.943643,0.00018356,2]
[378511222,1754890247443,-4039.536178,0.00018356,2]
[378511223,1754890247452,-4039.536178,0.00018356,2]
[378511224,1754890247462,-151.0,0.00018356,2]
[378511225,1754890247471,-42977.94,0.00018356,2]
[378511226,1754890247481,-820.0,0.0001836,2]
[378511227,1754890247493,-315.174228,0.00018369,2]
[378511229,1754890247503,-315.174228,0.00018369,2]
[378511230,1754890247512,-151.0,0.00018369,2]
[378511231,1754890247521,-151.0,0.00018369,2]
[378511232,1754890247530,-151.0,0.00018369,2]
[378511233,1754890247539,-151.0,0.00018369,2]
[378511234,1754890247549,-500.0,0.00018382,2]
[378511235,1754890247558,-1258.0,0.00018382,2]
[378511236,1754890247568,-168.0,0.00018384,2]
[378511237,1754890247577,-168.0,0.00018399,2]
[378511238,1754890247587,-150.0,0.000184,2]
[378511239,1754890247596,-168.0,0.00018481,2]
[378511240,1754890247605,-600.0,0.00018483,2]
[378511241,1754890247615,-358.12620491,0.00018484,2]
[378511242,1754890247624,-160.85,0.000185,2]
[378511243,1754890247633,-1000.0,0.00018521,2]
[378511244,1754890247643,-1000.0,0.00018521,2]
[378511245,1754890247652,-1000.0,0.00018521,2]
[378511246,1754890247667,-444.14520015,0.00018521,2]
[378511247,1754890247676,-208.0,0.00018525,2]
[378511248,1754890247685,-16074.15,0.00018533,2]
[378511249,1754890247695,-9888.92,0.00018533,2]
[378511250,1754890247706,-2545.19,0.00018533,2]
[378511251,1754890247715,-151.0,0.00018536,2]
[378511252,1754890247725,-151.0,0.00018536,2]
[378511253,1754890247738,-151.0,0.00018537,2]
[378511254,1754890247750,-169.604487,0.00018537,2]
[378511255,1754890247760,-283.548,0.00018537,2]
[378511257,1754890247770,-151.0,0.00018537,2]
[378511258,1754890247779,-445.966927,0.00018537,2]
[378511259,1754890247788,-445.966927,0.00018537,2]
[378511260,1754890247798,-166.768493,0.00018537,2]
[378511261,1754890247807,-296.068264,0.00018537,2]
[378511262,1754890247816,-151.0,0.00018537,2]
[378511263,1754890247827,-296.068264,0.00018537,2]
[378511264,1754890247836,-151.0,0.00018537,2]
[378511265,1754890247846,-151.0,0.00018537,2]
[378511266,1754890247856,-151.0,0.00018537,2]
[378511267,1754890247866,-151.0,0.00018537,2]
[378511268,1754890247876,-401.379728,0.00018537,2]
[378511269,1754890247886,-401.379728,0.00018537,2]
[378511270,1754890247896,-194.003862,0.00018537,2]
[378511271,1754890247905,-151.0,0.00018537,2]
[378511272,1754890247915,-194.003862,0.00018537,2]
[378511273,1754890247924,-235.066584,0.00018537,2]
[378511274,1754890247933,-198.315148,0.00018537,2]
[378511275,1754890247943,-198.315148,0.00018537,2]
[378511276,1754890247952,-1731.537162,0.00018537,2]
[378511277,1754890247962,-1731.537162,0.00018537,2]
[378511278,1754890247971,-151.0,0.00018537,2]
[378511279,1754890247980,-151.0,0.00018537,2]
[378511280,1754890247990,-151.0,0.00018537,2]
[378511281,1754890248000,-151.0,0.00018537,2]
[378511282,1754890248010,-195.474766,0.00018537,2]
[378511284,1754890248020,-195.474766,0.00018537,2]
[378511285,1754890248030,-196.625057,0.00018537,2]
[378511286,1754890248040,-196.625057,0.00018537,2]
[378511287,1754890248050,-199.919864,0.00018537,2]
[378511288,1754890248059,-199.919864,0.00018537,2]
[378511289,1754890248069,-516.224086,0.00018538,2]
[378511290,1754890248079,-516.224086,0.00018538,2]
[378511291,1754890248089,-282.696592,0.00018538,2]
[378511292,1754890248099,-151.0,0.00018538,2]
[378511293,1754890248109,-151.0,0.00018538,2]
[378511294,1754890248119,-177.351646,0.00018538,2]
[378511295,1754890248129,-177.351646,0.00018538,2]
[378511296,1754890248138,-317.599438,0.00018538,2]
[378511297,1754890248148,-317.599438,0.00018538,2]
[378511298,1754890248158,-157.575299,0.00018538,2]
[378511299,1754890248168,-157.575299,0.00018538,2]
[378511300,1754890248177,-485.864058,0.00018538,2]
[378511301,1754890248187,-485.864058,0.00018538,2]
[378511302,1754890248196,-151.0,0.00018538,2]
[378511303,1754890248205,-151.0,0.00018538,2]
[378511304,1754890248215,-151.0,0.00018538,2]
[378511305,1754890248224,-245.496693,0.00018538,2]
[378511306,1754890248234,-151.0,0.00018538,2]
[378511307,1754890248245,-216.042072,0.00018538,2]
[378511308,1754890248255,-216.042072,0.00018538,2]
[378511309,1754890248265,-1386.868697,0.00018538,2]
[378511311,1754890248274,-1386.868697,0.00018538,2]
[378511312,1754890248284,-10000.0,0.00018538,2]
[378511313,1754890248295,-10000.0,0.00018538,2]
[378511314,1754890248305,-10000.0,0.00018538,2]
[378511315,1754890248315,-10000.0,0.00018538,2]
[378511316,1754890248325,-372.290849,0.00018538,2]
[378511317,1754890248334,-372.290849,0.00018538,2]
[378511318,1754890248344,-151.0,0.00018538,2]
[378511319,1754890248353,-151.0,0.00018539,2]
[378511320,1754890248362,-151.0,0.00018539,2]
[378511321,1754890248371,-151.0,0.00018539,2]
[378511322,1754890248381,-236.038838,0.00018539,2]
[378511323,1754890248391,-516.224086,0.00018539,2]
[378511324,1754890248400,-516.224086,0.00018539,2]
[378511325,1754890248409,-151.0,0.00018539,2]
[378511326,1754890248419,-348.307943,0.00018539,2]
[378511327,1754890248428,-348.307943,0.00018539,2]
[378511328,1754890248438,-222.873055,0.00018539,2]
[378511329,1754890248447,-222.873055,0.00018539,2]
[378511330,1754890248456,-151.0,0.00018539,2]
[378511331,1754890248466,-151.0,0.00018539,2]
[378511332,1754890248475,-293.965612,0.00018539,2]
[378511333,1754890248485,-293.965612,0.00018539,2]
[378511334,1754890248496,-151.0,0.00018539,2]
[378511335,1754890248505,-151.0,0.00018539,2]
[378511337,1754890248515,-574.407,0.00018539,2]
[378511338,1754890248525,-574.407,0.00018539,2]
[378511339,1754890248534,-151.0,0.00018539,2]
[378511340,1754890248544,-688.960651,0.00018539,2]
[378511341,1754890248553,-688.960651,0.00018539,2]
[378511342,1754890248563,-388.703329,0.00018539,2]
[378511343,1754890248572,-388.703329,0.00018539,2]
[378511344,1754890248582,-151.0,0.00018539,2]
[378511345,1754890248591,-3360.120026,0.00018539,2]
[378511346,1754890248601,-3360.120026,0.00018539,2]
[378511347,1754890248610,-1007.50392,0.00018539,2]
[378511348,1754890248620,-1007.50392,0.00018539,2]
[378511349,1754890248717,-151.0,0.00018539,2]
[378511350,1754890248728,-151.0,0.00018539,2]
[378511351,1754890248738,-168.0,0.0001855,2]
[378511352,1754890248750,-420.02456131,0.00018567,2]
[378511353,1754890248759,-184520.1296368,0.00018591,2]
[378511354,1754890248769,-163.133093,0.00018615,2]
[378511355,1754890248779,-233.65501,0.00018615,2]
[378511357,1754890248788,-261.044515,0.00018615,2]
[378511358,1754890248798,-261.044515,0.00018615,2]
[378511359,1754890248808,-763.169563,0.00018615,2]
[378511360,1754890248818,-763.169563,0.00018615,2]
[378511361,1754890248829,-173.23,0.00018615,2]
[378511362,1754890248839,-746.95,0.00018615,2]
[378511363,1754890248849,-502.05084163,0.00018616,2]
[378511364,1754890248859,-2000.0,0.00018616,2]
[378511365,1754890248869,-2000.0,0.00018616,2]
[378511366,1754890248879,-311.45614637,0.0001862,2]
[378511367,1754890248888,-500.0,0.0001863,2]
[378511368,1754890248898,-1008.99,0.0001863,2]
[378511369,1754890248909,-163.095418,0.0001863,2]
[378511370,1754890248919,-151.0,0.0001863,2]
[378511371,1754890248928,-163.095418,0.0001863,2]
[378511372,1754890248938,-953.800763,0.0001863,2]
[378511373,1754890248948,-953.800763,0.0001863,2]
[378511374,1754890248958,-10000.0,0.0001863,2]
[378511375,1754890248968,-10000.0,0.0001863,2]
[378511376,1754890248978,-10000.0,0.0001863,2]
[378511377,1754890248987,-1804.603059,0.0001863,2]
[378511378,1754890248998,-1804.603059,0.0001863,2]
[378511379,1754890249007,-727.572305,0.0001863,2]
[378511380,1754890249017,-237.164555,0.0001863,2]
[378511381,1754890249027,-727.572305,0.0001863,2]
[378511382,1754890249036,-237.164555,0.0001863,2]
[378511383,1754890249045,-204.09109,0.0001863,2]
[378511384,1754890249055,-204.09109,0.0001863,2]
[378511385,1754890249064,-197.270912,0.0001863,2]
[378511386,1754890249073,-197.270912,0.0001863,2]
[378511387,1754890249083,-1200.323483,0.0001863,2]
[378511388,1754890249092,-151.0,0.0001863,2]
[378511389,1754890249102,-1200.323483,0.0001863,2]
[378511390,1754890249111,-185.862219,0.0001863,2]
[378511391,1754890249120,-250.173049,0.0001863,2]
[378511392,1754890249129,-250.173049,0.0001863,2]
[378511393,1754890249139,-1574.069305,0.0001863,2]
[378511394,1754890249148,-1574.069305,0.0001863,2]
[378511395,1754890249158,-1000.0,0.0001863,2]
[378511396,1754890249167,-780.9,0.0001863,2]
[378511397,1754890249176,-151.0,0.00018641,2]
[378511398,1754890249186,-165.353929,0.00018641,2]
[378511399,1754890249195,-165.353929,0.00018641,2]
[378511400,1754890249205,-151.0,0.00018641,2]
[378511401,1754890249214,-151.0,0.00018641,2]
[378511402,1754890249223,-151.0,0.00018641,2]
[378511403,1754890249233,-151.0,0.00018642,2]
[378511404,1754890249244,-151.0,0.00018642,2]
[378511405,1754890249255,-151.0,0.00018642,2]
[378511406,1754890249264,-151.0,0.00018642,2]
[378511407,1754890249273,-151.0,0.00018642,2]
[378511408,1754890249282,-193.68,0.00018642,2]
[378511409,1754890249291,-193.68,0.00018642,2]
[378511410,1754890249300,-279.392465,0.00018642,2]
[378511411,1754890249310,-279.392465,0.00018642,2]
[378511412,1754890249319,-151.0,0.00018642,2]
[378511413,1754890249329,-151.0,0.00018642,2]
[378511414,1754890249339,-157.576048,0.00018642,2]
[378511415,1754890249349,-157.576048,0.00018642,2]
[378511416,1754890249359,-151.0,0.00018642,2]
[378511417,1754890249368,-164.448014,0.00018642,2]
[378511418,1754890249377,-151.0,0.00018642,2]
[378511419,1754890249387,-151.0,0.00018642,2]
[378511420,1754890249396,-278.956221,0.00018642,2]
[378511421,1754890249406,-151.0,0.00018643,2]
[378511422,1754890249415,-481.92291772,0.00018651,2]
[378511423,1754890249424,-1289.58892491,0.00018654,2]
[378511424,1754890249434,-500.0,0.00018656,2]
[378511425,1754890249443,-1258.0,0.00018656,2]
[378511426,1754890249452,-2719.3,0.00018682,2]
[378511427,1754890249461,-600.0,0.00018685,2]
[378511428,1754890249470,-600.0,0.00018685,2]
[378511429,1754890249479,-380.84,0.00018685,2]
[378511430,1754890249488,-598.0,0.0001871,2]
[378511431,1754890249499,-1295.0,0.0001871,2]
[378511432,1754890249508,-565.0,0.0001871,2]
[378511433,1754890249518,-958.0,0.0001871,2]
[378511434,1754890249527,-2027.0,0.0001871,2]
[378511435,1754890249537,-1654.0,0.0001871,2]
[378511436,1754890249546,-1171.0,0.0001871,2]
[378511437,1754890249555,-895.028,0.0001871,2]
[378511438,1754890249564,-3494.858,0.0001871,2]
[378511439,1754890249574,-957.0,0.0001871,2]
[378511440,1754890249583,-3000.0,0.00018712,2]
[378511441,1754890249592,-1901.43168645,0.00018712,2]
[378511442,1754890249602,-1560.87,0.00018722,2]
[378511443,1754890249611,-199.41,0.00018729,2]
[378511444,1754890249620,-543.82127412,0.00018735,2]
[378511445,1754890249629,-168.0,0.00018738,2]
[378511446,1754890249639,-600.0,0.0001874,2]
[378511447,1754890249648,-600.0,0.0001874,2]
[378511448,1754890249658,-380.84,0.0001874,2]
[378511449,1754890249671,-168.0,0.00018789,2]
[378511450,1754890249680,-600.0,0.00018795,2]
[378511451,1754890249690,-600.0,0.00018795,2]
[378511452,1754890249699,-380.83500232,0.00018795,2]
[378511453,1754890249708,-1007.3093,0.00018799,2]
[378511454,1754890249718,-172.643685,0.000188,2]
[378511455,1754890249727,-172.05,0.000188,2]
[378511456,1754890249737,-172.05,0.000188,2]
[378511457,1754890249748,-172.05,0.000188,2]
[378511458,1754890249758,-172.05,0.000188,2]
[378511459,1754890249767,-172.05,0.000188,2]
[378511460,1754890249776,-172.05,0.000188,2]
[378511461,1754890249787,-172.05,0.000188,2]
[378511462,1754890249797,-172.05,0.000188,2]
[378511463,1754890249807,-172.05,0.000188,2]
[378511464,1754890249816,-172.05,0.000188,2]
[378511465,1754890249826,-172.05,0.000188,2]
[378511466,1754890249835,-172.05,0.000188,2]
[378511467,1754890249844,-172.05,0.000188,2]
[378511468,1754890249853,-172.05,0.000188,2]
[378511469,1754890249862,-172.05,0.000188,2]
[378511470,1754890249872,-172.05,0.000188,2]
[378511471,1754890249881,-172.05,0.000188,2]
[378511472,1754890249890,-172.05,0.000188,2]
[378511473,1754890249900,-172.05,0.000188,2]
[378511474,1754890249910,-172.05,0.000188,2]
[378511475,1754890249919,-172.05,0.000188,2]
[378511476,1754890249929,-172.05,0.000188,2]
[378511477,1754890249939,-172.05,0.000188,2]
[378511478,1754890249948,-172.05,0.000188,2]
[378511479,1754890249957,-172.05,0.000188,2]
[378511480,1754890249966,-172.05,0.000188,2]